bitfinex-derivatives/quotes_ETHF0:USTF0_20250518
["timestamp","ask_amount","ask_price","bid_price","bid_amount"]
[1747590191741,7.50747,2531.9,2531.7,16.647]
[1747590191942,0.78968,2531.8,2531.7,16.647]
[1747590192143,11.7178,2531.9,2530.7,4.38176588]
[1747590192346,0.78984,2531.3,2531.0,0.7899]
[1747590192639,3.99759,2531.5,2531.3,0.78983]
[1747590192835,3.2078,2531.8,2531.1,7.34344095]
[1747590193037,3.2078,2531.8,2531.7,0.78971]
[1747590193342,3.99729,2532.5,2532.2,0.78954]
[1747590193541,0.7895,2532.4,2532.2,0.78954]
[1747590193839,3.2078,2532.5,2531.9,0.78963]
[1747590194035,0.78959,2532.1,2531.9,23.1603]
[1747590194239,0.78962,2532.0,2531.9,23.1603]
[1747590194538,0.78962,2532.0,2531.8,39.802]
[1747590194539,0.78965,2531.9,2531.8,39.802]
[1747590194944,7.38225,2531.9,2531.8,56.451]
[1747590195238,3.2078,2532.0,2531.8,56.451]
[1747590195538,0.78965,2531.9,2531.8,56.451]
[1747590195746,7.38225,2531.9,2531.8,56.451]
[1747590196241,7.38225,2531.9,2531.1,16.618]
[1747590196242,6.5926,2531.9,2531.0,4.38176588]
[1747590196544,0.78979,2531.5,2531.0,21.03076588]
[1747590196840,0.78979,2531.5,2531.2,0.78984]
[1747590197034,0.78979,2531.5,2531.3,6.7471]
[1747590197235,0.78979,2531.5,2531.3,7.53694]
[1747590197436,0.78979,2531.5,2531.3,7.53693]
[1747590199546,7.38236,2531.6,2531.4,16.65]
[1747590200249,3.2078,2531.7,2531.6,0.78974]
[1747590200634,3.2078,2531.7,2531.6,17.43974]
[1747590201036,3.2078,2531.7,2531.6,0.78974]
[1747590201238,3.2078,2531.7,2531.6,17.44074]
[1747590201439,0.78974,2531.6,2531.5,6.8047]
[1747590201647,9.6069,2531.7,2531.5,23.4557]
[1747590201946,9.6069,2531.7,2531.6,0.78974]
[1747590205450,10.39663,2531.7,2531.6,16.602]
[1747590205946,9.6069,2531.7,2531.6,17.39174]
[1747590206447,10.39661,2531.7,2531.6,17.39174]
[1747590206841,9.6069,2531.7,2531.3,0.78983]
[1747590207040,3.2078,2531.4,2531.3,0.78983]
[1747590207753,3.2078,2531.4,2530.9,1.97488]
[1747590207754,0.78994,2531.0,2530.7,16.603]
[1747590208050,0.78996,2531.0,2530.9,0.78996]
[1747590208251,3.99772,2531.1,2530.9,0.78996]
[1747590208440,3.2078,2531.1,2531.0,0.78993]
[1747590208846,6.2658,2531.4,2531.1,0.78987]
[1747590209051,6.2658,2531.4,2530.2,3.2078]
[1747590209347,3.2078,2530.7,2530.0,1.17396588]
[1747590209543,0.79012,2530.4,2530.1,0.79019]
[1747590209738,0.79012,2530.5,2530.2,0.79017]
[1747590210048,3.2078,2530.7,2530.1,23.0562]
[1747590210644,3.2078,2530.7,2530.2,1.97546]
[1747590210852,3.99785,2530.7,2530.5,0.79008]
[1747590211347,8.2078,2530.7,2530.0,4.38176588]
[1747590211547,8.2078,2530.7,2528.9,1.40665948]
[1747590211548,0.79024,2530.1,2529.4,17.77896588]
[1747590211749,0.79024,2530.1,2529.8,0.7903]
[1747590211950,3.2078,2530.3,2529.7,0.79032]
[1747590212249,0.79026,2530.0,2529.7,0.79032]
[1747590212547,0.79024,2530.1,2529.8,0.79029]
[1747590212851,0.79026,2530.0,2529.8,16.605]
[1747590213342,0.79026,2530.0,2529.8,22.8054]
[1747590213542,3.2078,2530.3,2529.8,22.8054]
[1747590213741,3.99797,2530.3,2529.8,22.8054]
[1747590213938,3.2078,2530.6,2530.2,0.79017]
[1747590214143,0.79013,2530.4,2530.2,0.79017]
[1747590214650,3.2078,2530.6,2530.0,18.55762]
[1747590214847,3.2078,2530.6,2530.4,0.7901]
[1747590215047,3.2078,2530.6,2530.5,22.8084]
[1747590215344,3.2078,2530.6,2530.5,23.59849]
[1747590215545,3.2078,2531.1,2530.9,0.78994]
[1747590215745,3.2078,2531.1,2530.8,0.78998]
[1747590215940,3.2078,2531.1,2530.5,6.2004]
[1747590216152,0.79002,2530.8,2530.5,6.99048]
[1747590216355,0.79002,2530.8,2530.6,16.608]
[1747590216550,0.79001,2530.8,2530.6,16.608]
[1747590216854,0.79001,2530.8,2530.6,17.39804]
[1747590217352,0.78999,2530.9,2530.6,17.39803]
[1747590217556,0.78999,2530.9,2530.7,0.79]
[1747590217749,0.78999,2530.9,2530.6,16.608]
[1747590218054,0.78999,2530.9,2530.7,7.24833]
[1747590218254,0.78999,2530.9,2530.7,6.4583]
[1747590218456,0.78998,2530.9,2530.7,6.4583]
[1747590218653,0.78998,2530.9,2530.8,16.608]
[1747590219553,7.49505,2531.0,2530.8,17.39799]
[1747590219751,6.7051,2531.0,2530.9,16.608]
[1747590219951,7.49503,2531.0,2530.9,16.608]
[1747590220856,6.7051,2531.0,2530.9,17.39796]
[1747590221755,6.5332,2531.0,2530.9,17.39796]
[1747590222253,3.2078,2531.4,2530.9,16.608]
[1747590222454,0.78984,2531.3,2530.9,16.608]
[1747590222658,0.78984,2531.3,2531.2,0.78987]
[1747590223056,3.2078,2531.4,2531.3,0.78984]
[1747590224063,3.99761,2531.4,2531.3,0.78984]
[1747590224360,3.99761,2531.4,2531.2,0.78985]
[1747590224660,0.78987,2531.2,2531.1,16.608]
[1747590225157,0.78987,2531.2,2531.1,17.3979]
[1747590225358,6.7998,2531.3,2531.1,17.3979]
[1747590225662,7.58965,2531.3,2531.2,16.608]
[1747590225863,0.78987,2531.2,2531.1,0.78988]
[1747590226161,0.78987,2531.2,2531.1,17.39788]
[1747590227259,6.7998,2531.3,2531.2,0.78987]
[1747590227962,6.7998,2531.3,2531.2,17.39687]
[1747590228160,7.58964,2531.3,2531.2,16.607]
[1747590229657,0.78987,2531.2,2531.1,0.7899]
[1747590229862,0.78987,2531.2,2531.1,17.3969]
[1747590230064,7.58966,2531.3,2531.2,0.78987]
[1747590230362,6.7998,2531.3,2531.2,0.78987]
[1747590231064,3.2078,2531.7,2531.1,16.607]
[1747590231065,0.78977,2531.6,2531.1,16.607]
[1747590231255,0.78977,2531.6,2531.5,0.78977]
[1747590231861,7.34947,2531.6,2531.5,0.78978]
[1747590232058,0.78979,2531.5,2531.4,0.78979]
[1747590232959,0.78982,2531.4,2531.3,0.78982]
[1747590233360,0.7898,2531.5,2531.4,0.7898]
[1747590234666,0.7898,2531.5,2531.4,16.606]
[1747590234965,0.7898,2531.5,2530.8,16.606]
[1747590234966,1.97453,2531.4,2530.8,16.606]
[1747590235162,3.2078,2531.1,2531.0,0.78993]
[1747590236063,3.2078,2531.1,2530.9,4.20453158]
[1747590236265,0.78993,2531.0,2530.7,6.3301]
[1747590236569,0.7901,2530.5,2530.3,1.17396588]
[1747590236868,0.79005,2530.7,2530.4,16.505]
[1747590237166,3.2078,2530.8,2530.7,0.79003]
[1747590237463,3.99779,2530.8,2530.7,0.79003]
[1747590238368,0.79003,2530.7,2530.6,0.79005]
[1747590238568,7.13393,2530.7,2530.6,0.79005]
[1747590238865,7.13393,2530.7,2530.6,16.505]
[1747590239462,3.2078,2530.8,2530.7,0.79003]
[1747590239662,1.1329053,2531.7,2530.7,9.5356]
[1747590239858,0.78989,2531.2,2530.8,3.2078]
[1747590240067,0.78991,2531.1,2530.9,6.4757]
[1747590240258,0.78986,2531.3,2531.1,0.7899]
[1747590240465,0.78987,2531.2,2531.1,0.7899]
[1747590240677,0.78991,2531.1,2531.0,0.78992]
[1747590240868,6.4974,2531.4,2531.2,0.78985]
[1747590241172,0.78986,2531.3,2531.2,0.78987]
[1747590241372,0.78987,2531.2,2531.1,6.4757]
[1747590242062,0.78987,2531.2,2531.1,22.9817]
[1747590242668,6.4974,2531.4,2531.1,22.9817]
[1747590242875,1.1329053,2531.7,2531.2,6.4706]
[1747590243062,0.78978,2531.5,2531.2,6.4706]
[1747590243267,0.78978,2531.5,2531.3,17.29582]
[1747590243467,0.78977,2531.6,2531.4,0.78981]
[1747590243767,0.78977,2531.6,2531.4,7.26041]
[1747590243969,7.31757,2531.6,2531.5,16.506]
[1747590244678,6.5278,2531.6,2531.3,39.82]
[1747590244872,7.31754,2531.6,2531.5,16.506]
[1747590245068,6.5278,2531.6,2531.5,16.506]
[1747590245268,7.31754,2531.6,2531.5,17.29578]
[1747590245475,7.31754,2531.6,2531.5,16.506]
[1747590245670,7.31754,2531.6,2531.5,17.29578]
[1747590245671,6.5278,2531.6,2531.5,17.29578]
[1747590245876,6.5278,2531.6,2531.5,16.506]
[1747590246077,7.31754,2531.6,2531.5,17.29578]
[1747590246278,6.5278,2531.6,2531.5,17.29578]
[1747590247074,7.31754,2531.6,2531.5,22.9958]
[1747590247375,0.78981,2531.4,2531.3,39.82]
[1747590247569,0.78978,2531.5,2531.3,57.11481]
[1747590247774,0.78979,2531.5,2531.3,57.11481]
[1747590248081,0.78981,2531.4,2531.3,39.82]
[1747590248375,7.45571,2531.4,2531.3,39.82]
[1747590248783,7.45571,2531.4,2531.3,56.325]
[1747590249878,1.97461,2531.3,2531.0,16.504]
[1747590250083,0.7899,2531.1,2531.0,16.504]
[1747590250275,10.011,2531.2,2530.6,3.99784]
[1747590250478,0.78999,2530.8,2530.7,16.504]
[1747590250677,0.79003,2530.7,2530.6,3.2078]
[1747590250878,7.59323,2530.7,2530.6,16.504]
[1747590251383,0.79006,2530.6,2530.5,1.17396588]
[1747590251786,5.79006,2530.6,2530.5,1.17396588]
[1747590251985,12.33256,2530.6,2530.5,1.17396588]
[1747590252186,0.79012,2530.4,2530.3,39.817]
[1747590252673,5.79012,2530.4,2530.3,39.817]
[1747590252876,12.33262,2530.4,2530.3,39.817]
[1747590254084,0.79031,2529.8,2529.7,4.38176588]
[1747590254287,0.79031,2529.8,2529.7,17.67996588]
[1747590254786,5.79031,2529.8,2529.7,1.17396588]
[1747590254989,0.79034,2529.7,2529.3,2.75918574]
[1747590255289,7.28794,2529.7,2529.3,1.96874574]
[1747590255481,7.28794,2529.7,2529.3,2.75920574]
[1747590255683,6.4976,2529.7,2529.6,2.10286716]
[1747590255879,0.79028,2529.9,2529.7,0.79031]
[1747590256184,6.4976,2529.8,2529.7,0.79031]
[1747590256382,6.4976,2529.8,2529.7,7.16831]
[1747590256580,3.2078,2530.2,2530.1,0.79021]
[1747590256776,6.4976,2530.3,2530.2,0.79018]
[1747590256986,6.4976,2530.3,2529.9,16.509]
[1747590256987,1.1329053,2530.4,2530.3,0.79015]
[1747590257282,3.00762328,2531.1,2530.6,0.79006]
[1747590257488,3.00762328,2531.1,2531.0,0.78993]
[1747590257984,0.78978,2531.5,2531.3,0.78982]
[1747590258287,7.28736,2531.6,2531.3,0.78982]
[1747590258491,0.78978,2531.5,2531.2,0.78985]
[1747590258685,7.28736,2531.6,2531.3,6.5474]
[1747590258988,7.2486,2532.1,2531.4,16.508]
[1747590259191,1.58121445,2531.6,2531.5,0.78975]
[1747590259386,1.58121445,2531.6,2531.5,7.33715]
[1747590259687,1.58121445,2531.6,2531.5,10.54495]
[1747590261685,1.58121445,2531.6,2531.5,23.0544]
[1747590261883,1.58121445,2531.6,2531.5,23.84418]
[1747590264393,6.3769,2531.9,2531.3,3.99761]
[1747590264687,0.78976,2531.6,2531.5,16.505]
[1747590265083,0.78972,2531.7,2531.5,16.505]
[1747590265291,6.773,2531.6,2531.5,17.29476]
[1747590265491,0.78968,2531.8,2531.7,0.78971]
[1747590266188,0.78968,2531.8,2531.6,7.56453]
[1747590266389,0.78968,2531.8,2531.7,16.337]
[1747590267083,6.773,2532.0,2531.7,16.337]
[1747590267288,0.78965,2531.9,2531.8,0.78968]
[1747590267491,0.78965,2531.9,2531.7,16.337]
[1747590267788,6.4105,2531.8,2531.7,17.12671]
[1747590267988,3.2078,2532.1,2531.7,58.12924]
[1747590268294,1.97382,2532.3,2531.8,16.336]
[1747590268491,0.78965,2531.9,2531.8,16.336]
[1747590269088,0.78968,2531.8,2531.7,56.154]
[1747590269391,10.40798,2531.8,2531.7,56.154]
[1747590269989,3.058,2531.9,2531.7,56.154]
[1747590270182,0.78968,2531.8,2531.7,46.4859]
[1747590270383,0.78968,2531.8,2531.7,56.154]
[1747590270890,0.78968,2531.8,2531.7,39.818]
[1747590271092,3.84768,2531.8,2531.7,56.154]
[1747590271687,3.84768,2531.8,2531.7,56.94371]
[1747590272194,3.84768,2531.8,2531.7,56.154]
[1747590273395,3.84768,2531.8,2531.7,39.818]
[1747590273594,3.84768,2531.8,2531.7,56.153]
[1747590274194,3.058,2531.8,2531.7,56.94271]
[1747590274395,3.84768,2531.8,2531.7,56.94271]
[1747590274696,3.84768,2531.8,2531.7,56.153]
[1747590274996,0.78981,2531.4,2531.3,19.5428]
[1747590275191,3.84781,2531.4,2531.3,19.5428]
[1747590275494,3.84781,2531.4,2531.3,0.78984]
[1747590275495,3.058,2531.4,2531.3,0.78984]
[1747590276195,3.84781,2531.4,2531.3,0.78984]
[1747590277291,3.058,2531.4,2531.3,0.78984]
[1747590277686,3.058,2531.4,2531.3,5.78984]
[1747590277888,6.7108,2532.0,2531.3,7.20264]
[1747590278194,0.78974,2531.7,2531.6,0.78974]
[1747590278984,0.78976,2531.6,2531.5,0.78976]
[1747590279190,8.6849,2532.0,2531.7,0.7897]
[1747590279191,0.7897,2531.8,2531.7,0.7897]
[1747590279494,6.7108,2532.0,2531.5,16.335]
[1747590279495,0.78971,2531.7,2531.6,7.83033]
[1747590279700,7.25291,2531.7,2531.6,7.83033]
[1747590279998,6.4632,2531.7,2531.6,7.83033]
[1747590280199,0.78964,2532.0,2531.9,0.78964]
[1747590280393,0.78962,2532.0,2531.9,0.78963]
[1747590280794,6.4632,2532.1,2532.0,0.78962]
[1747590280999,0.78962,2532.0,2531.9,0.78963]
[1747590281491,0.78962,2532.0,2531.9,17.12463]
[1747590281690,6.4632,2532.1,2532.0,0.78962]
[1747590282397,6.4632,2532.1,2532.0,7.42252]
[1747590282995,7.25279,2532.1,2532.0,7.42252]
[1747590283192,7.25279,2532.1,2532.0,23.75652]
[1747590283392,6.4632,2532.1,2532.0,23.75652]
[1747590283796,6.4632,2532.1,2531.6,25.21644]
[1747590283797,0.78971,2531.7,2531.6,3.2078]
[1747590283990,1.97406,2532.0,2531.3,16.334]
[1747590284198,6.9208,2531.6,2531.5,0.78976]
[1747590284395,7.71056,2531.6,2531.5,0.78978]
[1747590284600,6.9208,2531.6,2531.5,0.78978]
[1747590285101,0.78978,2531.5,2531.4,0.78979]
[1747590285403,0.78981,2531.4,2531.3,17.12381]
[1747590285603,6.6821,2531.4,2531.3,17.12381]
[1747590287296,1.97402,2532.1,2531.3,16.334]
[1747590287497,0.78976,2531.6,2531.5,0.78977]
[1747590288098,0.78976,2531.6,2531.5,17.12477]
[1747590288703,6.6821,2531.8,2531.5,16.335]
[1747590289006,6.6821,2531.8,2531.7,0.78971]
[1747590289902,0.78971,2531.7,2531.6,7.68503]
[1747590290906,0.78971,2531.7,2531.6,24.02003]
[1747590292311,0.78982,2531.4,2531.3,17.12482]
[1747590292509,0.78982,2531.4,2531.3,23.72562]
[1747590293513,0.7898,2531.5,2531.4,0.7898]
[1747590293809,0.7898,2531.5,2531.4,6.6008]
[1747590294204,0.7898,2531.5,2531.4,7.39061]
[1747590295912,7.50165,2531.6,2531.5,0.78978]
[1747590296111,0.78972,2531.7,2531.6,0.78972]
[1747590296714,4.73076293,2531.9,2531.4,6.6008]
[1747590296917,0.78974,2531.7,2531.6,0.78973]
[1747590297110,6.8401,2531.8,2531.4,6.6008]
[1747590297111,0.78978,2531.5,2531.4,6.6008]
[1747590297312,0.78978,2531.5,2531.4,22.7228]
[1747590297818,0.78978,2531.5,2531.4,23.51261]
[1747590298116,6.8401,2531.8,2531.4,22.7228]
[1747590298312,0.78972,2531.7,2531.6,0.78972]
[1747590298508,0.78976,2531.6,2531.5,0.78975]
[1747590298709,7.99706,2531.6,2531.5,7.75145]
[1747590300517,7.2073,2531.6,2531.5,7.75145]
[1747590300717,4.73076293,2531.9,2531.5,6.9617]
[1747590300919,0.78974,2531.6,2531.5,16.122]
[1747590301215,0.78974,2531.7,2531.5,16.122]
[1747590301417,7.5927,2531.8,2531.7,0.78971]
[1747590301612,6.803,2531.8,2531.7,0.78971]
[1747590302221,7.59268,2531.8,2531.7,0.78971]
[1747590302720,4.73076293,2531.9,2531.8,0.78968]
[1747590303016,1.52296293,2531.9,2531.8,0.78968]
[1747590303221,1.52296293,2531.9,2531.8,3.84768]
[1747590303524,1.52296293,2531.9,2531.8,19.96968]
[1747590303820,6.803,2532.1,2532.0,0.78962]
[1747590304519,7.59259,2532.1,2532.0,0.78962]
[1747590304719,6.803,2532.1,2532.0,0.78962]
[1747590305220,6.803,2532.1,2532.0,3.84762]
[1747590305420,7.59259,2532.1,2532.0,3.84762]
[1747590306009,6.803,2532.1,2532.0,3.84762]
[1747590307116,6.803,2532.1,2532.0,0.78962]
[1747590312026,6.803,2532.1,2532.0,7.92322]
[1747590313422,0.78954,2532.3,2532.2,0.78956]
[1747590313620,5.36423579,2532.6,2532.3,0.78953]
[1747590313621,7.82362,2532.4,2532.3,0.78953]
[1747590313820,0.78954,2532.3,2532.2,0.78954]
[1747590314721,0.78954,2532.3,2532.0,7.1336]
[1747590314926,0.78958,2532.2,2532.1,0.78958]
[1747590315222,0.78955,2532.3,2532.2,0.78955]
[1747590315729,1.97367,2532.5,2531.9,10.0272]
[1747590316018,3.2078,2532.0,2531.6,16.119]
[1747590316221,0.78971,2531.7,2531.6,16.119]
[1747590317425,0.78987,2531.2,2531.1,4.38176588]
[1747590318218,0.78987,2531.2,2531.1,1.17396588]
[1747590318622,0.79006,2530.6,2530.5,4.60013947]
[1747590319021,0.79004,2530.7,2530.5,4.60013947]
[1747590319427,3.2078,2531.4,2530.5,25.72013947]
[1747590319628,3.2078,2532.1,2531.2,3.2078]
[1747590319824,3.35245459,2532.1,2531.3,6.9711]
[1747590320030,0.78981,2531.5,2531.4,16.12]
[1747590320422,3.81363823,2531.5,2531.4,16.12]
[1747590320624,3.02382823,2531.5,2531.4,16.12]
[1747590320819,3.02382823,2531.5,2531.3,6.9711]
[1747590321029,3.02382823,2531.5,2531.4,16.121]
[1747590321427,3.81360823,2531.5,2531.4,16.121]
[1747590321627,0.78981,2531.4,2531.3,16.121]
[1747590321828,3.02382823,2531.5,2531.3,16.121]
[1747590322129,0.78981,2531.4,2531.3,16.121]
[1747590323143,3.02382823,2531.5,2531.4,0.78981]
[1747590323352,3.02382823,2531.5,2531.4,7.89561]
[1747590323543,3.02382823,2531.5,2531.4,12.89561]
[1747590323732,3.9974,2532.1,2531.8,0.78966]
[1747590323933,6.27229167,2532.1,2531.9,7.1058]
[1747590324223,5.48269167,2532.1,2532.0,16.122]
[1747590324426,5.48269167,2532.1,2532.0,16.91162]
[1747590324735,2.27489167,2532.1,2532.0,16.122]
[1747590324932,3.06448167,2532.1,2532.0,16.122]
[1747590325129,2.27489167,2532.1,2531.5,3.2078]
[1747590325329,0.78971,2531.7,2531.6,16.122]
[1747590326736,0.78978,2531.5,2531.0,3.2078]
[1747590326925,0.78977,2531.6,2531.4,0.78981]
[1747590327127,0.78978,2531.5,2531.3,0.78982]
[1747590327331,0.78978,2531.5,2531.4,6.8422]
[1747590328327,0.7897,2531.8,2531.4,6.8422]
[1747590328631,5.13577246,2532.0,2531.8,0.78966]
[1747590328835,5.13577246,2532.0,2531.9,22.8608]
[1747590329435,3.99744,2532.0,2531.9,22.8608]
[1747590330532,0.78964,2532.0,2531.9,22.8608]
[1747590330833,0.78964,2532.0,2531.9,16.65865]
[1747590331235,0.78964,2532.0,2531.9,15.869]
[1747590331434,0.78964,2532.0,2531.9,16.65865]
[1747590331838,0.78964,2532.0,2531.9,15.869]
[1747590332137,7.6911,2532.1,2531.9,16.65862]
[1747590332434,7.6911,2532.1,2532.0,7.74942]
[1747590332628,7.6911,2532.1,2532.0,6.9598]
[1747590334043,7.6911,2532.1,2532.0,7.74942]
[1747590334242,6.9015,2532.1,2532.0,7.74942]
[1747590334740,0.78959,2532.1,2532.0,7.74942]
[1747590335135,0.78959,2532.1,2532.0,15.868]
[1747590335336,8.11509,2532.1,2532.0,15.868]
[1747590335537,8.11509,2532.1,2532.0,16.65762]
[1747590335741,8.11509,2532.1,2532.0,15.868]
[1747590337641,8.11509,2532.1,2532.0,22.9959]
[1747590337842,8.11509,2532.1,2532.0,23.78552]
[1747590338240,8.11509,2532.1,2532.0,22.9959]
[1747590338442,8.11509,2532.1,2532.0,15.868]
[1747590338839,8.11509,2532.1,2531.8,0.78967]
[1747590338840,12.50731,2532.1,2531.8,15.868]
[1747590339043,0.78965,2531.9,2531.8,15.868]
[1747590339647,0.78965,2531.9,2531.8,22.9959]
[1747590339848,0.78965,2532.0,2531.9,0.78965]
[1747590340044,0.78965,2531.9,2531.8,23.78556]
[1747590341753,0.78962,2532.0,2531.8,23.78556]
[1747590341949,0.78965,2531.9,2531.8,23.78556]
[1747590342153,7.3255,2532.1,2531.8,15.868]
[1747590342154,11.32291,2532.1,2531.8,15.868]
[1747590342449,7.3255,2532.1,2531.9,7.1674]
[1747590342752,0.78962,2532.0,2531.9,7.95704]
[1747590343155,0.78962,2532.0,2531.9,7.1674]
[1747590343743,0.78962,2532.0,2531.9,23.0354]
[1747590343952,0.78962,2532.0,2531.9,23.82505]
[1747590344250,0.78962,2532.0,2531.9,23.0354]
[1747590344953,0.78962,2532.0,2531.9,23.82505]
[1747590345146,7.3255,2532.1,2531.9,23.0354]
[1747590345347,8.1151,2532.1,2532.0,0.78962]
[1747590345550,0.78962,2532.0,2531.9,23.0354]
[1747590346252,8.11512,2532.1,2531.9,23.0354]
[1747590346547,0.78962,2532.0,2531.9,23.82505]
[1747590346852,0.78962,2532.0,2531.9,23.82502]
[1747590347050,8.11511,2532.1,2532.0,0.78962]
[1747590347355,0.78962,2532.0,2531.9,23.0354]
[1747590347749,8.11511,2532.1,2532.0,0.78962]
[1747590347950,0.78962,2532.0,2531.9,23.0354]
[1747590348251,0.78962,2532.0,2531.9,23.82505]
[1747590348654,0.78962,2532.0,2531.9,23.0354]
[1747590349052,12.50731,2532.1,2531.4,3.2078]
[1747590349353,0.7897,2531.8,2531.7,0.7897]
[1747590349549,6.9048,2531.9,2531.2,7.3285]
[1747590349754,0.78976,2531.6,2531.5,0.78977]
[1747590350555,0.78978,2531.5,2531.4,8.11829]
[1747590350750,0.78976,2531.6,2531.5,0.78977]
[1747590350950,0.78976,2531.6,2531.5,8.11827]
[1747590351356,6.9048,2531.9,2531.2,0.78985]
[1747590351553,6.9048,2531.9,2530.9,18.2269788]
[1747590351554,0.78993,2531.0,2530.9,18.2269788]
[1747590351751,3.2078,2531.5,2531.0,0.78991]
[1747590351952,3.2078,2531.5,2530.9,21.4347788]
[1747590352161,0.78984,2531.3,2530.9,19.0758]
[1747590352552,0.78983,2531.4,2530.9,19.0758]
[1747590352756,0.78979,2531.5,2531.0,6.9611]
[1747590353051,7.033,2531.7,2531.5,0.78977]
[1747590353248,7.033,2531.7,2531.4,0.7898]
[1747590353454,1.92803246,2531.8,2531.6,0.78972]
[1747590353660,8.96103246,2531.8,2531.7,15.868]
[1747590354161,8.17133246,2531.8,2531.7,16.65771]
[1747590354361,8.17133246,2531.8,2531.2,14.469]
[1747590354563,0.78978,2531.5,2531.3,0.78982]
[1747590354757,0.78978,2531.5,2531.4,15.868]
[1747590355364,0.78981,2531.4,2531.3,3.058]
[1747590355565,7.45351,2531.4,2531.3,3.058]
[1747590355957,12.45351,2531.4,2531.3,3.058]
[1747590356168,0.78996,2531.0,2530.9,15.868]
[1747590356460,0.78996,2531.0,2530.9,22.6786]
[1747590356655,0.78996,2531.0,2530.9,23.46856]
[1747590356856,0.78992,2531.1,2530.9,23.46854]
[1747590357056,0.78989,2531.2,2530.9,22.6786]
[1747590357255,7.4536,2531.1,2530.9,26.52654]
[1747590357756,6.6637,2531.1,2531.0,0.78993]
[1747590357958,7.45362,2531.1,2531.0,6.8106]
[1747590358350,0.78996,2530.9,2530.8,3.2078]
[1747590358557,0.78996,2530.9,2530.1,1.57583902]
[1747590358558,19.53087,2530.9,2530.1,1.57583902]
[1747590358751,0.79018,2530.2,2530.1,1.57583902]
[1747590360462,3.2078,2530.7,2530.1,4.78363902]
[1747590360668,8.08864,2530.7,2530.5,0.79008]
[1747590360861,3.208,2530.9,2530.5,15.592]
[1747590361065,0.79003,2530.7,2530.6,15.592]
[1747590361661,0.79003,2530.7,2530.5,3.058]
[1747590361662,0.79018,2530.2,2530.1,1.57583902]
[1747590361867,7.0721,2530.6,2530.0,15.592]
[1747590362070,7.0721,2530.6,2530.3,0.79013]
[1747590362263,0.79008,2530.6,2530.4,7.64721]
[1747590362573,0.79009,2530.5,2530.4,6.8571]
[1747590362758,7.86219,2530.5,2530.4,6.8571]
[1747590363563,3.99804,2530.7,2530.4,23.24122]
[1747590363971,3.208,2530.7,2530.4,22.4511]
[1747590364178,0.79009,2530.5,2530.4,22.4511]
[1747590364870,0.79009,2530.5,2530.4,15.594]
[1747590365474,0.79021,2530.1,2530.0,15.594]
[1747590366467,0.79031,2529.8,2529.7,55.412]
[1747590366672,0.79031,2529.8,2529.7,39.817]
[1747590366873,0.79037,2529.6,2529.5,15.595]
[1747590368073,7.86414,2529.7,2529.5,15.595]
[1747590368275,0.79031,2529.8,2529.6,7.80895]
[1747590368578,3.2078,2529.9,2529.6,7.0186]
[1747590368777,0.7904,2529.5,2529.4,3.2078]
[1747590368977,0.7904,2529.5,2529.4,15.595]
[1747590369481,0.79046,2529.3,2529.2,22.6156]
[1747590370182,0.79052,2529.2,2529.1,15.597]
[1747590370371,0.79052,2529.2,2528.9,15.597]
[1747590370372,0.79056,2529.0,2528.9,15.597]
[1747590370568,0.79054,2529.1,2528.9,16.38758]
[1747590370774,7.70572,2529.2,2529.0,6.888]
[1747590371178,6.9152,2529.2,2528.8,39.83]
[1747590371378,0.79062,2528.8,2528.7,15.597]
[1747590372383,6.7642,2529.0,2528.4,7.7692]
[1747590372574,6.7642,2529.0,2528.5,6.888]
[1747590372776,3.208,2529.2,2529.1,0.79053]
[1747590372977,6.4158,2529.6,2529.5,0.7904]
[1747590373173,3.208,2529.6,2529.5,0.7904]
[1747590373980,3.208,2529.6,2529.4,0.7904]
[1747590374175,0.79037,2529.6,2529.5,7.146]
[1747590374382,7.58972,2529.5,2529.3,0.79045]
[1747590375179,7.58972,2529.5,2529.3,7.93645]
[1747590375379,6.7993,2529.5,2529.4,0.79043]
[1747590375680,7.58971,2529.5,2529.3,7.93645]
[1747590375878,0.79043,2529.4,2529.3,7.146]
[1747590376278,0.79043,2529.4,2529.3,7.93646]
[1747590376577,0.79049,2529.2,2529.1,8.0609]
[1747590376778,6.767,2529.3,2529.2,0.79049]
[1747590377076,3.208,2529.7,2529.2,9.9564]
[1747590377279,7.55738,2529.6,2529.4,0.7904]
[1747590377588,7.55738,2529.6,2529.4,0.79041]
[1747590377875,3.208,2529.5,2529.2,3.2078]
[1747590378075,3.2078,2529.3,2528.4,3.2078]
[1747590378283,5.18422,2529.0,2528.3,0.79076]
[1747590378473,0.7907,2528.6,2528.3,0.79076]
[1747590378671,6.767,2528.5,2528.0,4.0895]
[1747590378874,7.55771,2528.5,2528.1,6.7486]
[1747590379177,0.79078,2528.3,2528.1,7.53942]
[1747590379375,6.767,2528.5,2528.1,6.7486]
[1747590379678,7.55773,2528.5,2528.3,0.79076]
[1747590380288,4.0029,2529.4,2528.9,0.79059]
[1747590380483,3.99844,2529.4,2529.2,0.79047]
[1747590380675,3.208,2529.4,2528.8,15.601]
[1747590380884,3.99844,2529.4,2528.8,17.57751]
[1747590381081,3.208,2529.4,2529.3,0.79046]